fUSD/lending_fUSD_20251130
["ID","MTS","AMOUNT","RATE_DAILY","PERIOD"]
[395162231,1764498520514,-2299.2829891,0.00012308,2]
[395162232,1764498520542,-227.07,0.00012382,2]
[395162233,1764498520569,-2164.6679218,0.000124,2]
[395162234,1764498525742,-337.90352533,0.00012308,2]
[395162235,1764498525772,-617.9681782,0.000124,2]
[395162236,1764498525802,-2782.63611,0.000124,2]
[395162237,1764498529174,-2782.63611,0.000124,2]
[395162238,1764498529202,-1652.10167,0.000124,2]
[395162239,1764498529571,-1130.53444,0.000124,2]
[395162240,1764498529598,-2782.6361,0.000124,2]
[395162256,1764498536170,-500.0,0.00012399,2]
[395162257,1764498536200,-500.0,0.00012399,2]
[395162258,1764498536231,-500.0,0.00012399,2]
[395162259,1764498536260,-500.0,0.00012399,2]
[395162260,1764498536289,-357.55519265,0.00012399,2]
[395162261,1764498536316,-2502.2635147,0.000124,2]
[395162262,1764498536511,-280.3725853,0.000124,2]
[395162263,1764498536538,-976.88386487,0.00012401,2]
[395162264,1764498536564,-151.96835927,0.00012401,2]
[395162265,1764498536592,-257.91778498,0.00012401,2]
[395162266,1764498536620,-300.0,0.00012401,2]
[395162267,1764498536647,-334.5472959,0.00012401,2]
[395162268,1764498536674,-1000.0,0.00012401,2]
[395162269,1764498536701,-221.76419729,0.00012401,2]
[395162270,1764498536729,-151.0,0.00012405,2]
[395162271,1764498536756,-511.80598309,0.00012407,2]
[395162272,1764498536788,-151.92874478,0.00012407,2]
[395162273,1764498542375,-300.0,0.00012407,2]
[395162274,1764498542541,-1070.90095731,0.00012408,2]
[395162276,1764498542787,-10000.01,0.00012408,2]
[395162277,1764498599342,-200.16875991,0.00012403,2]
[395162278,1764498599369,-151.0,0.00012405,2]
[395162279,1764498599416,-9297.67248018,0.00012408,2]
[395162280,1764498599517,-10000.01,0.00012408,2]
[395162281,1764498599658,-3030.78576251,0.00012408,2]
[395162282,1764498599691,-3938.43847498,0.00012408,2]
[395162283,1764498600163,-10000.01,0.00012408,2]
[395162284,1764498600322,-10000.01,0.00012408,2]
[395162285,1764498600504,-10000.01,0.00012408,2]
[395162286,1764498600605,-10000.01,0.00012408,2]
[395162287,1764498600717,-10000.01,0.00012408,2]
[395162288,1764498600853,-10000.01,0.00012408,2]
[395162292,1764498613526,-10000.01,0.00012308,2]
[395162293,1764498613693,-10000.01,0.00012308,2]
[395162294,1764498613846,-10000.01,0.00012308,2]
[395162295,1764498613987,-3399.3492,0.00012308,2]
[395162296,1764498614030,-1200.0,0.00012407,2]
[395162297,1764498614062,-300.0,0.00012407,2]
[395162298,1764498614137,-201.3116,0.00012407,2]
[395162299,1764498614168,-98.6884,0.00012407,2]
[395162300,1764498614202,-150.0,0.00012407,2]
[395162301,1764498615906,-9502.6332,0.00012408,2]
[395162302,1764498616461,-10000.01,0.00012408,2]
[395162303,1764498616478,-10000.01,0.00012408,2]
[395162304,1764498616494,-10000.01,0.00012408,2]
[395162305,1764498616508,-10000.01,0.00012408,2]
[395162306,1764498625353,-4575.69,0.00012287,2]
[395162307,1764498625395,-848.63,0.00012408,2]
[395162329,1764498632127,-261.95057696,0.00012407,2]
[395162330,1764498632137,-347.70289904,0.00012408,2]
[395162331,1764498632149,-999.0,0.00012408,2]
[395162332,1764498632189,-32668.72331177,0.00012408,2]
[395162333,1764498632234,-993.64720947,0.00012408,2]
[395162334,1764498632245,-4041.16407892,0.00012408,2]
[395162335,1764498632278,-487.82297663,0.00012408,2]
[395162336,1764498632350,-1187.0,0.00012408,2]
[395162337,1764498632361,-3393.06409333,0.00012408,2]
[395162338,1764498632398,-561.03394185,0.00012408,2]
[395162351,1764498633463,-10000.01,0.00012408,2]
[395162352,1764498633637,-10000.01,0.00012408,2]
[395162369,1764498636505,-10000.01,0.00012408,2]
[395162371,1764498638961,-3044.10971577,0.00012408,2]
[395162372,1764498638972,-761.33804441,0.00012408,2]
[395162373,1764498639101,-250.0,0.000124,2]
[395162374,1764498639110,-250.0,0.000124,2]
[395162375,1764498639119,-9500.01,0.00012408,2]
[395162379,1764498640295,-1.7e-07,0.000124,2]
[395162380,1764498640354,-249.99999983,0.000124,2]
[395162381,1764498640363,-250.0,0.000124,2]
[395162382,1764498640371,-128.8895279,0.000124,2]
[395162385,1764498643460,-121.1104721,0.000124,2]
[395162386,1764498643469,-250.0,0.000124,2]
[395162387,1764498643479,-130.23693774,0.000124,2]
[395162389,1764498646107,-119.76306226,0.000124,2]
[395162390,1764498646117,-250.0,0.000124,2]
[395162391,1764498646126,-250.0,0.000124,2]
[395162392,1764498646135,-250.0,0.000124,2]
[395162393,1764498646144,-250.0,0.000124,2]
[395162394,1764498646153,-250.0,0.000124,2]
[395162395,1764498646162,-250.0,0.000124,2]
[395162396,1764498646171,-239.19693774,0.000124,2]
[395162462,1764498668254,256.051367,7.945e-05,2]
[395162463,1764498669387,-200.0,0.00012272,2]
[395162464,1764498669418,-309.59966074,0.00012308,2]
[395162465,1764498671387,-548.96763811,0.00012308,2]
[395162466,1764498674030,-180.12476308,0.00012308,2]
[395162468,1764498675757,-441.492013,0.0001221,2]
[395162469,1764498675779,-96.56143482,0.00012308,2]
[395162470,1764498677551,-318.60669344,0.00012308,2]
[395162472,1764498680013,-181.15641038,0.00012308,2]
[395162473,1764498682586,-249.54801596,0.00012308,2]
[395162474,1764498685273,-254.69291239,0.00012308,2]
[395162475,1764498686958,-269.71146789,0.00012308,2]
[395162476,1764498688918,-215.92294338,0.00012308,2]
[395162477,1764498692182,-239.84461896,0.00012308,2]
[395162478,1764498693865,-198.18696423,0.0001216,2]
[395162479,1764498696808,-155.51444591,0.0001216,2]
[395162480,1764498697707,-4887.90141014,0.0001216,2]
[395162481,1764498697730,-224.20717972,0.0001216,2]
[395162482,1764498697922,-187.42409288,0.0001216,2]
[395162483,1764498699850,-133.88090712,0.0001216,2]
[395162484,1764498699872,-44.02262002,0.00012308,2]
[395162485,1764498702421,-500.0,0.00012308,2]
[395162486,1764498703815,-3764.23826735,0.00012308,2]
[395162487,1764498703862,-2471.5334653,0.00012308,2]
[395162488,1764498704366,-28.4665347,0.00012308,2]
[395162489,1764498706019,-151.0,0.00012405,2]
[395162490,1764498706041,-32.5334653,0.00012407,2]
[395162491,1764498714107,500.0,0.00025,120]
[395162493,1764498723902,-300.0,0.0001229,2]
[395162494,1764498725428,-228.56036305,0.0001229,2]
[395162495,1764498727661,164.404863,7.945e-05,2]
[395162496,1764498729281,-280.44853211,0.0001229,2]
[395162497,1764498731466,-385.59247409,0.0001229,2]
[395162498,1764498733148,-622.92752218,0.0001229,2]
[395162499,1764498733173,-8754.15495564,0.0001229,2]
[395162500,1764498733362,-4783.34865341,0.00012308,2]
[395162501,1764498733385,-433.31269318,0.00012308,2]
[395162502,1764498736775,-334.5472959,0.00012401,2]
[395162503,1764498736807,-151.0,0.00012401,2]
[395162504,1764498736840,-200.0,0.00012401,2]
[395162505,1764498736872,-500.0,0.00012401,2]
[395162506,1764498736904,-151.0,0.00012401,2]
[395162507,1764498736935,-684.39182428,0.00012401,2]
[395162508,1764498736966,-500.0,0.00012401,2]
[395162509,1764498737000,-500.0,0.00012401,2]
[395162510,1764498737033,-500.0,0.00012401,2]
[395162511,1764498737070,-500.0,0.00012401,2]
[395162512,1764498737101,-500.0,0.00012401,2]
[395162513,1764498737132,-458.13175964,0.00012401,2]
[395162514,1764498737513,-41.86824036,0.00012401,2]
[395162515,1764498737522,-16.4527041,0.00012401,2]
[395162516,1764498742990,-136.87750202,0.00012401,2]
[395162517,1764498743012,-529.22961556,0.00012401,2]
[395162518,1764498743185,-293.56641359,0.00012308,2]
[395162519,1764498743215,-4.66019935,0.00012401,2]
[395162520,1764498743243,-250.0,0.00012401,2]
[395162521,1764498743272,-500.0,0.00012401,2]
[395162522,1764498743302,-500.0,0.00012401,2]
[395162523,1764498743332,-250.0,0.00012401,2]
[395162524,1764498743360,-500.0,0.00012401,2]
[395162525,1764498743389,-500.0,0.00012401,2]
[395162526,1764498743417,-250.0,0.00012401,2]
[395162527,1764498743445,-500.0,0.00012401,2]
[395162528,1764498743475,-151.0,0.00012401,2]
[395162529,1764498743504,-500.0,0.00012401,2]
[395162530,1764498743532,-250.0,0.00012401,2]
[395162531,1764498743562,-500.0,0.00012401,2]
[395162532,1764498743914,-101.55677412,0.00012401,2]
[395162533,1764498744120,-49.44322588,0.00012401,2]
[395162534,1764498744145,-252.55677412,0.00012401,2]
[395162538,1764498748384,-247.44322588,0.00012401,2]
[395162539,1764498748411,-250.0,0.00012401,2]
[395162540,1764498748438,-500.0,0.00012401,2]
[395162541,1764498748465,-500.0,0.00012401,2]
[395162542,1764498748493,-151.0,0.00012401,2]
[395162543,1764498748520,-500.0,0.00012401,2]
[395162544,1764498748547,-500.0,0.00012401,2]
[395162545,1764498748573,-151.0,0.00012401,2]
[395162546,1764498748600,-500.0,0.00012401,2]
[395162547,1764498748627,-151.0,0.00012401,2]
[395162548,1764498748654,-500.0,0.00012401,2]
[395162549,1764498748681,-500.0,0.00012401,2]
[395162550,1764498748708,-151.0,0.00012401,2]
[395162551,1764498748736,-297.12354824,0.00012401,2]
[395162552,1764498748993,-202.87645176,0.00012401,2]
[395162553,1764498749024,-500.0,0.00012401,2]
[395162554,1764498749054,-594.25709648,0.00012401,2]
[395162555,1764498749193,-2594.26709648,0.00012401,2]
[395162556,1764498749307,-4811.47580704,0.00012401,2]
[395162557,1764498749349,-127.05838592,0.00012401,2]
[395162558,1764498749522,-75.81806584,0.00012401,2]
[395162559,1764498749616,-47.12354824,0.00012401,2]
[395162560,1764498749626,-151.0,0.00012401,2]
[395162561,1764498749637,-500.0,0.00012401,2]
[395162562,1764498749649,-500.0,0.00012401,2]
[395162563,1764498749665,-6207.61935528,0.00012401,2]
[395162564,1764498749778,-1792.38064472,0.00012401,2]
[395162565,1764498749787,-500.0,0.00012401,2]
[395162566,1764498749798,-151.0,0.00012401,2]
[395162567,1764498749807,-2368.09516232,0.00012401,2]
[395162568,1764498749867,-250.0,0.00012401,2]
[395162569,1764498749981,-4618.10516232,0.00012401,2]
[395162570,1764498750054,-763.79967536,0.00012401,2]
[395162571,1764498750084,-500.0,0.00012401,2]
[395162572,1764498750115,-151.0,0.00012401,2]
[395162573,1764498750959,-112.79967536,0.00012401,2]
[395162574,1764498750974,-500.0,0.00012401,2]
[395162575,1764498751016,-151.0,0.00012401,2]
[395162576,1764498751030,-7170.41064928,0.00012401,2]
[395162577,1764498754397,-65.78967536,0.00012401,2]
[395162578,1764498754427,-500.0,0.00012401,2]
[395162579,1764498754459,-151.0,0.00012401,2]
[395162580,1764498754489,-250.0,0.00012401,2]
[395162581,1764498754518,-250.0,0.00012401,2]
[395162582,1764498754551,-190.7567282,0.00012401,2]
[395162583,1764498754890,-7184.91719288,0.00012401,2]
[395162584,1764498758536,-815.08280712,0.00012401,2]
[395162586,1764498758569,-500.0,0.00012401,2]
[395162587,1764498758599,-250.0,0.00012401,2]
[395162588,1764498758628,-151.0,0.00012401,2]
[395162589,1764498759110,-250.0,0.00012401,2]
[395162590,1764498759323,-2000.01,0.00012401,2]
[395162591,1764498759430,-4000.02,0.00012401,2]
[395162592,1764498759519,-67.81438576,0.00012401,2]
[395162593,1764498759584,-1932.15561424,0.00012401,2]
[395162594,1764498759614,-500.0,0.00012401,2]
[395162595,1764498759644,-250.0,0.00012401,2]
[395162596,1764498759676,-151.0,0.00012401,2]
[395162597,1764498759708,-250.0,0.00012401,2]
[395162598,1764498759793,-4916.84438576,0.00012401,2]
[395162599,1764498759867,-3083.15561424,0.00012401,2]
[395162600,1764498759878,-500.0,0.00012401,2]
[395162601,1764498759888,-500.0,0.00012401,2]
[395162602,1764498759898,-151.0,0.00012401,2]
[395162603,1764498759908,-250.0,0.00012401,2]
[395162604,1764498759919,-1515.83438576,0.00012401,2]
[395162605,1764498759989,-1932.15561424,0.00012401,2]
[395162606,1764498760015,-500.0,0.00012401,2]
[395162607,1764498760033,-250.0,0.00012401,2]
[395162608,1764498760069,-151.0,0.00012401,2]
[395162609,1764498760144,-250.0,0.00012401,2]
[395162610,1764498760163,-3401.01,0.00012401,2]
[395162611,1764498760172,-250.0,0.00012401,2]
[395162612,1764498760183,-182.68877152,0.00012401,2]
[395162613,1764498765949,-317.31122848,0.00012401,2]
[395162614,1764498765978,-1000.0,0.00012401,2]
[395162615,1764498766005,-500.0,0.00012401,2]
[395162616,1764498766035,-151.0,0.00012401,2]
[395162617,1764498766062,-250.0,0.00012401,2]
[395162618,1764498766236,-5563.38754304,0.00012401,2]
[395162619,1764498766530,-2436.61245696,0.00012401,2]
[395162620,1764498766944,-250.0,0.00012401,2]
[395162621,1764498766975,-1000.0,0.00012401,2]
[395162622,1764498767004,-500.0,0.00012401,2]
[395162623,1764498767038,-500.0,0.00012401,2]
[395162624,1764498767066,-250.0,0.00012401,2]
[395162625,1764498767165,-151.0,0.00012401,2]
[395162626,1764498767194,-1698.01,0.00012401,2]
[395162627,1764498767303,-6301.99,0.00012401,2]
[395162628,1764498767312,-151.0,0.00012401,2]
[395162631,1764498771933,-99.0,0.00012401,2]
[395162632,1764498771960,-500.0,0.00012401,2]
[395162633,1764498771989,-1000.0,0.00012401,2]
[395162634,1764498772016,-500.0,0.00012401,2]
[395162635,1764498772048,-349.97444739,0.00012401,2]
[395162636,1764498772077,-151.0,0.00012401,2]
[395162637,1764498772198,-4800.06110522,0.00012401,2]
[395162638,1764498772241,-3199.93889478,0.00012401,2]
[395162639,1764498772268,-500.0,0.00012401,2]
[395162640,1764498772296,-1000.0,0.00012401,2]
[395162641,1764498772324,-250.0,0.00012401,2]
[395162642,1764498772399,-500.0,0.00012401,2]
[395162643,1764498772426,-151.0,0.00012401,2]
[395162644,1764498772453,-698.01,0.00012401,2]
[395162645,1764498772569,-2698.02,0.00012401,2]
[395162646,1764498772621,-4603.97,0.00012401,2]
[395162647,1764498772630,-100.13221044,0.00012401,2]
[395162648,1764498772656,-399.86778956,0.00012401,2]
[395162649,1764498772665,-1000.0,0.00012401,2]
[395162650,1764498772674,-250.0,0.00012401,2]
[395162651,1764498772683,-500.0,0.00012401,2]
[395162652,1764498772693,-151.0,0.00012401,2]
[395162653,1764498772702,-5001.12221044,0.00012401,2]
[395162654,1764498777820,-10000.01,0.00012308,2]
[395162655,1764498778030,-4250.9755,0.00012308,2]
[395162656,1764498778053,-1498.059,0.00012308,2]
[395162657,1764498781143,-403.50816133,0.00012401,2]
[395162659,1764498798998,-277.7958107,0.00012308,2]
[395162660,1764498801018,-229.47581174,0.00012308,2]
[395162661,1764498805490,-295.66558469,0.00012308,2]
[395162662,1764498805511,-9.15010196,0.00012308,2]
[395162663,1764498810444,-207.22068025,0.00012308,2]
[395162664,1764498811479,-174.46010026,0.00012308,2]
[395162665,1764498843955,-101.89749509,0.00012308,2]
[395162666,1764498843977,-49.61496406,0.00012308,2]
[395162667,1764498847116,-404.54573868,0.00012308,2]
[395162668,1764498857330,-221.97219332,0.00012308,2]
[395162669,1764498876455,1600.0,0.00011779,2]
[395162670,1764498932307,1797.06789788,0.00012055,2]
[395162671,1764498932328,4152.81667017,0.00012055,2]
[395162672,1764498932350,4152.81667017,0.00012055,2]
[395162673,1764498932371,4152.81667017,0.00012055,2]
[395162674,1764498932392,4152.81667017,0.00012055,2]
[395162675,1764498932413,4152.81667017,0.00012055,2]
[395162676,1764498932435,192.07875127,0.00012055,2]
[395162677,1764498949014,-300.0,0.00012308,2]
[395162678,1764498951605,-300.0,0.00012308,2]
[395162679,1764498953001,-501.1082752,0.00012308,2]
[395162680,1764498956801,-284.7500004,0.00012308,2]
[395162681,1764498958270,-348.48754085,0.00012308,2]
[395162682,1764498960456,-168.34169307,0.00012308,2]
[395162683,1764498962604,-238.36710413,0.00012308,2]
[395162684,1764498965075,-198.57145067,0.00012308,2]
[395162685,1764498967582,-166.68338286,0.00012308,2]
[395162686,1764498968122,3960.7379189,7.945e-05,2]
[395162687,1764498968144,2647.3275941,7.945e-05,2]
[395162688,1764498969698,-244.4596897,0.00012308,2]
[395162689,1764498971965,-152.42312095,0.00012308,2]
[395162690,1764498972983,-393.6718542,0.00012308,2]
[395162691,1764498975041,-244.4596897,0.00012308,2]
[395162692,1764498977051,-244.52844755,0.00012308,2]
[395162693,1764498978781,-300.0,0.00012308,2]
[395162694,1764499008914,-500.0,0.00012308,2]
[395162695,1764499010918,-4253.17554292,0.00012308,2]
[395162696,1764499010942,-1493.65891416,0.00012308,2]
[395162697,1764499011074,-178.80027896,0.00012308,2]
[395162698,1764499011118,-81.60582498,0.00012308,2]
[395162699,1764499011145,-1000.0,0.00012308,2]
[395162700,1764499011178,-250.0,0.00012354,2]
[395162701,1764499011209,-667.83266,0.0001239,2]
[395162702,1764499011238,-300.0,0.00012398,2]
[395162703,1764499011268,-1200.0,0.00012399,2]
[395162704,1764499011296,-300.0,0.00012399,2]
[395162705,1764499011322,-150.0,0.00012399,2]
[395162706,1764499011356,-500.0,0.000124,2]
[395162707,1764499011385,-500.0,0.000124,2]
[395162708,1764499011493,-500.0,0.000124,2]
[395162709,1764499011522,-302.45706457,0.000124,2]
[395162710,1764499011550,-500.0,0.000124,2]
[395162711,1764499011578,-500.0,0.000124,2]
[395162712,1764499011608,-500.0,0.000124,2]
[395162713,1764499011636,-500.0,0.000124,2]
[395162714,1764499011668,-500.0,0.000124,2]
[395162715,1764499011697,-500.0,0.000124,2]
[395162716,1764499011726,-500.0,0.000124,2]
[395162717,1764499011755,-533.42733712,0.000124,2]
[395162718,1764499011868,-556.05819783,0.000124,2]
[395162719,1764499011898,-500.0,0.000124,2]
[395162720,1764499011927,-500.0,0.000124,2]
[395162721,1764499011956,-385.8582756,0.000124,2]
[395162722,1764499011986,-500.0,0.000124,2]
[395162723,1764499012016,-453.76778872,0.000124,2]
[395162724,1764499012045,-500.0,0.000124,2]
[395162725,1764499012074,-500.0,0.000124,2]
[395162726,1764499012105,-201.76649526,0.000124,2]
[395162727,1764499012180,-2595.36962823,0.00012401,2]
[395162728,1764499012210,-1000.0,0.00012401,2]
[395162729,1764499012239,-250.0,0.00012401,2]
[395162730,1764499012267,-500.0,0.00012401,2]
[395162731,1764499012297,-151.0,0.00012401,2]
[395162732,1764499012325,-151.0,0.00012401,2]
[395162733,1764499012354,-205.27074354,0.00012401,2]
[395162734,1764499012454,-294.72925646,0.00012401,2]
[395162735,1764499012480,-160.0,0.00012401,2]
[395162736,1764499012508,-1000.0,0.00012401,2]
[395162737,1764499012534,-207.60760368,0.00012401,2]
[395162738,1764499012561,-500.0,0.00012401,2]
[395162739,1764499012587,-500.0,0.00012401,2]
[395162740,1764499012613,-151.0,0.00012401,2]
[395162741,1764499012641,-1000.0,0.00012401,2]
[395162742,1764499012667,-500.0,0.00012401,2]
[395162743,1764499012694,-151.0,0.00012401,2]
[395162744,1764499012721,-71.33627972,0.00012401,2]
[395162745,1764499012814,-928.66372028,0.00012401,2]
[395162746,1764499012844,-500.0,0.00012401,2]
[395162747,1764499012873,-151.0,0.00012401,2]
[395162748,1764499012902,-212.20826158,0.00012401,2]
[395162749,1764499012931,-1000.0,0.00012401,2]
[395162750,1764499012960,-1000.0,0.00012401,2]
[395162751,1764499012989,-200.0,0.00012401,2]
[395162752,1764499013017,-1000.0,0.00012401,2]
[395162753,1764499013582,-1000.0,0.00012401,2]
[395162754,1764499013612,-151.0,0.00012401,2]
[395162755,1764499013642,-197.60270261,0.00012401,2]
[395162756,1764499013671,-151.0,0.00012401,2]
[395162757,1764499013700,-151.0,0.00012401,2]
[395162758,1764499013728,-500.0,0.00012401,2]
[395162759,1764499013756,-151.0,0.00012401,2]
[395162760,1764499013784,-500.0,0.00012401,2]
[395162761,1764499013813,-151.0,0.00012401,2]
[395162762,1764499013843,-500.0,0.00012401,2]
[395162763,1764499013872,-151.0,0.00012401,2]
[395162764,1764499013900,-500.0,0.00012401,2]
[395162765,1764499013928,-151.0,0.00012401,2]
[395162766,1764499013956,-500.0,0.00012401,2]
[395162767,1764499014242,-1000.0,0.00012401,2]
[395162768,1764499014269,-151.0,0.00012401,2]
[395162769,1764499014297,-500.0,0.00012401,2]
[395162770,1764499014323,-500.0,0.00012401,2]
[395162771,1764499014350,-1000.0,0.00012401,2]
[395162772,1764499014376,-500.0,0.00012401,2]
[395162773,1764499014404,-151.0,0.00012401,2]
[395162774,1764499014431,-500.0,0.00012401,2]
[395162775,1764499014457,-396.01,0.00012401,2]
[395162776,1764499015089,-287.47606149,0.00012401,2]
[395162777,1764499015402,-316.51393851,0.00012401,2]
[395162778,1764499015411,-118.07239469,0.00012401,2]
[395162779,1764499015425,-151.0,0.00012401,2]
[395162780,1764499015438,-230.92760531,0.00012401,2]
[395162781,1764499015447,-151.0,0.00012401,2]
[395162782,1764499015456,-118.07239469,0.00012401,2]
[395162783,1764499015469,-500.0,0.00012401,2]
[395162784,1764499015482,-381.92760531,0.00012401,2]
[395162785,1764499015491,-500.0,0.00012401,2]
[395162786,1764499015500,-118.07239469,0.00012401,2]
[395162787,1764499015513,-181.92760531,0.00012401,2]
[395162788,1764499015522,-318.07239469,0.00012401,2]
[395162789,1764499015535,-151.0,0.00012401,2]
[395162790,1764499015548,-30.92760531,0.00012401,2]
[395162791,1764499015558,-151.0,0.00012401,2]
[395162792,1764499015567,-318.07239469,0.00012401,2]
[395162793,1764499015581,-681.92760531,0.00012401,2]
[395162794,1764499015590,-318.07239469,0.00012401,2]
[395162795,1764499015627,-181.92760531,0.00012401,2]
[395162796,1764499015653,-194.99852451,0.00012401,2]
[395162797,1764499015680,-500.0,0.00012401,2]
[395162798,1764499015706,-151.0,0.00012401,2]
[395162799,1764499015735,-1000.0,0.00012401,2]
[395162800,1764499015762,-500.0,0.00012401,2]
[395162801,1764499015790,-500.0,0.00012401,2]
[395162802,1764499015817,-151.0,0.00012401,2]
[395162803,1764499015845,-1000.0,0.00012401,2]
[395162804,1764499015875,-500.0,0.00012401,2]
[395162805,1764499015902,-142.15774036,0.00012401,2]
[395162806,1764499016010,-357.84225964,0.00012401,2]
[395162807,1764499016275,-1000.0,0.00012401,2]
[395162808,1764499016304,-500.0,0.00012401,2]
[395162809,1764499016333,-500.0,0.00012401,2]
[395162810,1764499016361,-1000.0,0.00012401,2]
[395162811,1764499016392,-514.58566631,0.00012401,2]
[395162812,1764499016422,-530.88428487,0.00012401,2]
[395162813,1764499016450,-193.38557836,0.00012401,2]
[395162814,1764499016614,-806.61442164,0.00012401,2]
[395162815,1764499016645,-1000.0,0.00012401,2]
[395162816,1764499016675,-620.0,0.00012401,2]
[395162817,1764499016702,-1000.0,0.00012401,2]
[395162818,1764499016730,-1000.0,0.00012401,2]
[395162819,1764499016756,-201.71985748,0.00012401,2]
[395162820,1764499016785,-250.0,0.00012401,2]
[395162821,1764499017055,-250.0,0.00012401,2]
[395162822,1764499017065,-250.0,0.00012401,2]
[395162823,1764499017075,-227.32249011,0.00012401,2]
[395162824,1764499017089,-22.67750989,0.00012401,2]
[395162825,1764499017098,-179.04234759,0.00012401,2]
[395162826,1764499017111,-70.95765241,0.00012401,2]
[395162827,1764499017120,-179.04234759,0.00012401,2]
[395162828,1764499017133,-243.34144176,0.00012401,2]
[395162829,1764499021583,-577.61621065,0.00012401,2]
[395162830,1764499021610,-250.0,0.00012401,2]
[395162831,1764499021637,-250.0,0.00012401,2]
[395162832,1764499021666,-250.0,0.00012401,2]
[395162833,1764499021693,-250.0,0.00012401,2]
[395162834,1764499021721,-257.91778498,0.00012401,2]
[395162835,1764499021749,-250.0,0.00012401,2]
[395162836,1764499021777,-250.0,0.00012401,2]
[395162837,1764499021804,-242.76972511,0.00012401,2]
[395162838,1764499021833,-200.0,0.00012401,2]
[395162839,1764499021860,-1091.27,0.00012401,2]
[395162840,1764499021889,-154.54452364,0.00012404,2]
[395162841,1764499022083,-1951.77351124,0.00012407,2]
[395162842,1764499022108,-10000.01,0.00012407,2]
[395162843,1764499022122,-5506.39023391,0.00012407,2]
[395162844,1764499022131,-500.0,0.00012407,2]
[395162845,1764499022141,-198.50982919,0.00012407,2]
[395162846,1764499022150,-175.59242453,0.00012407,2]
[395162847,1764499022159,-399.31440127,0.00012407,2]
[395162848,1764499022173,-672.00139643,0.00012408,2]
[395162849,1764499022182,-2548.20171467,0.00012408,2]
[395162850,1764499022206,-10000.01,0.00012408,2]
[395162851,1764499022219,-10000.01,0.00012408,2]
[395162852,1764499022244,-10000.01,0.00012408,2]
[395162853,1764499034976,-179.28100154,0.00012208,2]
[395162854,1764499035004,-200.0,0.00012401,2]
[395162855,1764499035033,-241.19087969,0.00012401,2]
[395162856,1764499035061,-151.0,0.00012401,2]
[395162857,1764499035091,-226.1704522,0.00012401,2]
[395162858,1764499035118,-533.88981491,0.00012401,2]
[395162859,1764499035145,-151.0,0.00012401,2]
[395162860,1764499035175,-151.0,0.00012401,2]
[395162861,1764499035204,-151.0,0.00012401,2]
[395162862,1764499035234,-151.0,0.00012401,2]
[395162863,1764499035268,-1000.0,0.00012401,2]
[395162864,1764499035300,-151.0,0.00012401,2]
[395162865,1764499035330,-1000.0,0.00012401,2]
[395162866,1764499035359,-185.03878058,0.00012401,2]
[395162867,1764499035389,-56.86814216,0.00012401,2]
[395162868,1764499035476,-943.13185784,0.00012401,2]
[395162869,1764499035715,-200.0,0.00012401,2]
[395162870,1764499035725,-743.13185784,0.00012408,2]
[395162871,1764499035739,-8113.74628432,0.00012408,2]
[395162872,1764499035774,-10000.01,0.00012408,2]
[395162873,1764499035851,-10000.01,0.00012408,2]
[395162874,1764499048550,-151.0,0.00012401,2]
[395162875,1764499048578,-151.0,0.00012401,2]
[395162876,1764499048605,-334.5472959,0.00012401,2]
[395162877,1764499048631,-151.0,0.00012401,2]
[395162878,1764499048660,-151.0,0.00012401,2]
[395162879,1764499048687,-500.0,0.00012401,2]
[395162880,1764499048714,-151.0,0.00012401,2]